bitfinex/quotes_ETHUSD_20251214
["timestamp","ask_amount","ask_price","bid_price","bid_amount"]
[1765712756789,0.001,3061.9,3059.8,0.4888]
[1765712756790,0.4902,3061.8,3059.8,0.4888]
[1765712757118,6.213567,3061.4,3059.3,0.1993]
[1765712757317,0.53103232,3061.3,3059.4,0.4888]
[1765712757507,0.4902,3061.3,3059.4,0.4888]
[1765712757688,1.0802,3061.3,3059.4,0.4888]
[1765712757903,0.04083099,3061.4,3059.4,0.4888]
[1765712758098,0.09628809,3060.7,3059.4,0.4888]
[1765712758305,0.04084166,3060.6,3059.5,2.746428]
[1765712758516,0.04083232,3061.3,3059.7,20.454384]
[1765712758704,0.04182432,3061.9,3059.7,20.454384]
[1765712758906,0.04182432,3061.9,3059.9,5.660666]
[1765712759120,3.411,3061.8,3059.9,5.660666]
[1765712759417,0.09628809,3061.3,3059.8,0.4888]
[1765712760015,0.09628809,3061.5,3059.9,2.316344]
[1765712760318,0.04083232,3061.3,3059.9,0.2805144]
[1765712760507,0.09628809,3061.1,3059.8,0.4888]
[1765712760707,0.38905471,3061.2,3059.8,0.4888]
[1765712760909,0.09628809,3061.2,3059.8,0.4888]
[1765712761108,0.33360161,3061.1,3059.3,0.6881]
[1765712761309,0.29276662,3061.0,3059.3,0.6881]
[1765712761524,0.09628809,3060.8,3059.4,0.4888]
[1765712761698,0.4902,3061.8,3059.5,30.01692233]
[1765712761896,0.29329048,3061.7,3059.7,30.0]
[1765712762112,0.29329048,3061.6,3059.7,30.0]
[1765712762311,0.29329048,3061.5,3059.9,30.0]
[1765712762511,19.658861,3061.1,3059.3,0.1993]
[1765712762701,0.09628809,3060.4,3059.3,0.1993]
[1765712762914,0.13713242,3060.4,3059.3,0.1993]
[1765712763214,0.09628809,3059.9,3059.0,0.4888]
[1765712763412,0.1618,3060.3,3059.1,0.1891]
[1765712763591,0.29431522,3060.2,3059.1,0.1891]
[1765712763798,0.29431522,3060.1,3059.2,0.4888]
[1765712763991,0.29431522,3060.0,3059.2,0.4888]
[1765712764305,0.09628809,3060.8,3059.3,3.293954]
[1765712764503,0.09628809,3060.2,3058.8,6.750847]
[1765712764823,0.09628809,3060.0,3058.8,7.4748117]
[1765712765023,0.09628809,3060.6,3058.8,7.4748117]
[1765712765024,0.29462518,3059.9,3059.0,11.35768]
[1765712765228,0.58047529,3060.8,3059.0,11.35768]
[1765712765411,0.29464074,3060.7,3059.2,21.16373]
[1765712765611,0.29464074,3060.6,3059.2,21.16373]
[1765712765824,0.29464074,3060.5,3059.4,10.456599]
[1765712766029,0.29473017,3061.2,3059.5,0.60593398]
[1765712766201,0.001,3061.6,3059.6,30.0]
[1765712766397,0.29513247,3061.5,3059.8,30.0]
[1765712766606,0.29513247,3061.4,3060.0,30.0]
[1765712766813,0.001,3061.6,3060.2,25.432053]
[1765712767049,0.29513288,3061.5,3060.2,19.464206]
[1765712767246,0.29513288,3061.4,3060.3,0.4888]
[1765712767450,0.29513288,3061.3,3060.4,11.618647]
[1765712767649,0.29513288,3061.3,3060.3,0.4888]
[1765712767650,0.001,3061.6,3060.6,18.693165]
[1765712768014,0.001,3061.6,3060.5,1.2107447]
[1765712768015,0.001,3061.6,3060.8,18.377698]
[1765712768350,0.001,3061.6,3060.8,30.0]
[1765712768517,0.001,3061.6,3061.0,30.0]
[1765712768854,0.1936,3061.7,3060.2,0.1891]
[1765712769064,0.58047529,3061.4,3059.3,3.599436]
[1765712769361,0.92526321,3061.3,3059.3,3.599436]
[1765712769518,0.29543089,3061.2,3059.5,30.0]
[1765712769712,0.29543089,3061.1,3059.5,30.0]
[1765712769935,0.29543089,3061.0,3059.7,30.0]
[1765712770139,0.001,3061.9,3059.7,30.0]
[1765712770322,0.001,3061.9,3059.6,1.0778]
[1765712770323,0.29555317,3061.8,3059.9,30.0]
[1765712770510,0.001,3061.9,3060.1,30.0]
[1765712770842,0.001,3061.9,3060.5,31.959]
[1765712771011,0.001,3061.9,3060.2,0.60590788]
[1765712771012,0.001,3063.2,3060.8,0.58047529]
[1765712771220,0.001,3063.2,3062.7,9.931816]
[1765712771446,0.001,3063.2,3062.8,0.589]
[1765712771653,0.001,3063.2,3062.9,30.0]
[1765712771869,0.1618,3065.1,3063.2,30.0]
[1765712772151,0.29444433,3065.5,3063.7,30.0]
[1765712772354,0.29444433,3065.5,3063.1,0.09628809]
[1765712772355,0.4902,3065.0,3063.3,30.588]
[1765712772652,0.1628,3065.7,3063.4,0.588]
[1765712772860,0.29441654,3065.6,3063.5,30.0]
[1765712773079,3.85506968,3066.3,3063.5,30.0]
[1765712773080,0.6838,3066.4,3063.5,30.0]
[1765712773348,0.1936,3066.9,3064.4,30.0]
[1765712773539,0.29358748,3066.8,3064.6,30.0]
[1765712773748,0.29358748,3066.8,3064.5,0.588]
[1765712773749,0.3343479,3066.7,3064.5,9.914882]
[1765712773917,0.78378748,3066.6,3064.6,0.6779]
[1765712774113,0.29358748,3066.5,3064.3,4.116962]
[1765712774327,0.29358748,3066.4,3064.5,18.546793]
[1765712774524,0.4902,3066.5,3064.5,18.546793]
[1765712774843,0.1936,3066.9,3064.7,30.0]
[1765712775016,0.82393621,3066.8,3064.8,0.4888]
[1765712775213,0.78317712,3066.8,3064.9,14.989195]
[1765712775432,0.4902,3066.7,3064.9,5.554897]
[1765712775743,0.4902,3066.7,3065.1,8.25868]
[1765712775941,0.4902,3066.7,3065.0,1.1519697]
[1765712775942,0.4902,3066.7,3065.3,28.270979]
[1765712776143,2.1152,3067.3,3065.3,19.082855]
[1765712776348,2.1152,3067.3,3065.5,30.0]
[1765712776647,1.625,3067.3,3065.7,30.0]
[1765712776819,1.625,3067.3,3065.9,10.994638]
[1765712777019,1.625,3067.3,3065.9,9.6859]
[1765712777212,1.625,3067.3,3065.9,3.1541]
[1765712777424,0.04075378,3067.2,3066.0,0.587]
[1765712777643,1.625,3067.3,3066.0,0.587]
[1765712777854,1.80103,3067.3,3066.0,0.587]
[1765712778220,1.80103,3067.3,3065.8,0.587]
[1765712778221,0.53095378,3067.2,3065.8,0.587]
[1765712778465,0.53095378,3067.2,3065.3,4.741164]
[1765712778466,0.4902,3067.2,3065.3,4.741164]
[1765712778635,0.04075511,3067.1,3065.7,0.587]
[1765712778957,0.04075511,3067.1,3065.0,23.958086]
[1765712779129,1.625,3067.3,3065.1,25.000583]
[1765712779451,1.625,3067.3,3065.3,30.0]
[1765712779746,1.625,3067.3,3066.2,0.09628809]
[1765712779946,1.625,3067.3,3066.3,5.027846]
[1765712780457,1.625,3067.3,3066.3,5.61776941]
[1765712780622,1.625,3067.3,3066.4,4.15]
[1765712780918,0.53095378,3067.2,3065.5,4.733559]
[1765712781124,0.4902,3067.2,3065.6,19.927154]
[1765712781323,0.4902,3067.2,3065.7,7.616243]
[1765712781549,1.625,3067.3,3065.9,19.503151]
[1765712781772,0.4902,3067.2,3065.9,0.585]
[1765712781974,0.4902,3067.2,3066.0,0.585]
[1765712782163,0.4902,3067.2,3066.1,5.670607]
[1765712782364,1.626,3067.3,3065.8,0.4888]
[1765712782567,0.4902,3067.1,3065.8,4.741277]
[1765712782947,0.4902,3067.1,3065.3,28.194148]
[1765712783153,0.4902,3067.1,3065.6,0.09628809]
[1765712783359,0.4902,3067.1,3065.7,6.902377]
[1765712783564,0.4902,3067.1,3065.8,9.100698]
[1765712783777,0.4902,3067.1,3066.0,11.085528]
[1765712784076,1.626,3067.3,3066.0,0.584]
[1765712784277,1.626,3067.3,3065.6,0.4888]
[1765712784450,0.53095378,3067.2,3065.8,4.469039]
[1765712784648,0.4902,3067.2,3065.6,0.4888]
[1765712784878,0.4902,3067.2,3065.5,7.005665]
[1765712784879,0.25237511,3067.1,3065.5,7.005665]
[1765712785191,0.21162,3067.1,3065.4,4.732311]
[1765712785359,0.04075643,3067.0,3065.5,0.4809]
[1765712785571,0.4902,3067.1,3065.6,14.873458]
[1765712786281,0.58047529,3067.2,3065.8,18.026048]
[1765712787892,1.626,3067.3,3066.0,5.77762]
[1765712788463,1.626,3067.3,3066.0,0.581]
[1765712788464,0.4812,3067.2,3066.0,0.581]
[1765712788670,0.65733,3067.2,3066.0,0.581]
[1765712788984,1.626,3067.3,3066.1,13.295048]
[1765712789154,0.001,3067.1,3066.1,13.295048]
[1765712789367,0.001,3067.1,3066.2,3.154]
[1765712789807,0.001,3067.1,3066.1,3.1541]
[1765712790006,0.001,3067.1,3066.1,2.156715]
[1765712790376,0.4812,3067.0,3064.3,2.05528809]
[1765712790582,0.001,3067.1,3065.3,29.15265709]
[1765712790798,0.001,3067.1,3065.7,30.0]
[1765712791000,0.001,3067.1,3065.9,30.0]
[1765712791284,0.001,3067.1,3066.1,30.0]
[1765712791606,0.001,3067.1,3065.8,0.58]
[1765712791607,0.001,3067.1,3065.9,0.4908]
[1765712791765,0.001,3067.1,3066.1,14.281708]
[1765712791971,0.001,3067.1,3066.2,14.845421]
[1765712792203,0.1373,3067.1,3066.1,0.58]
[1765712792510,0.1373,3067.1,3066.2,3.009648]
[1765712793010,0.001,3067.1,3066.2,3.009648]
[1765712793183,0.001,3067.1,3066.4,30.0]
[1765712793395,0.001,3067.1,3066.6,19.954882]
[1765712793703,0.001,3067.1,3066.8,23.039377]
[1765712794064,1.626,3067.3,3067.1,0.405504]
[1765712794065,1.09516177,3067.3,3067.1,0.405504]
[1765712794269,1.09516177,3067.3,3067.2,30.405504]
[1765712794465,0.21430611,3067.3,3067.2,30.405504]
[1765712794966,0.200137,3067.3,3067.2,29.383607]
[1765712795190,0.001,3068.4,3067.5,0.405504]
[1765712795393,0.001,3068.4,3067.8,30.0]
[1765712795566,0.001,3068.4,3068.1,0.405504]
[1765712795764,0.001,3068.4,3068.3,30.405504]
[1765712795962,0.001,3068.4,3068.3,32.93327425]
[1765712796395,0.001,3068.4,3068.3,30.405504]
[1765712797116,0.001,3068.4,3068.3,30.982504]
[1765712798516,0.001,3068.4,3068.3,31.56297929]
[1765712798720,0.001,3068.8,3068.5,30.455504]
[1765712798894,0.001,3068.8,3068.5,31.03597929]
[1765712799216,0.001,3069.7,3069.1,0.98597929]
[1765712799436,0.001,3069.7,3069.2,0.576]
[1765712799599,0.001,3069.7,3069.3,30.0]
[1765712799805,0.001,3069.7,3069.5,30.0]
[1765712799990,0.001,3069.7,3069.6,0.405504]
[1765712800190,0.001,3070.1,3069.6,30.405504]
[1765712800419,0.001,3070.1,3069.7,30.981504]
[1765712800622,0.001,3070.1,3069.7,26.071308]
[1765712800925,0.001,3070.1,3069.7,27.052812]
[1765712801507,0.001,3070.1,3069.7,30.980504]
[1765712802328,0.001,3070.1,3068.9,30.0]
[1765712802498,0.001,3070.1,3069.2,0.405504]
[1765712802691,0.001,3070.1,3069.6,0.405504]
[1765712802891,0.001,3070.1,3069.7,30.979504]
[1765712804910,0.001,3070.1,3070.0,30.405504]
[1765712805114,0.001,3070.1,3070.0,31.55897929]
[1765712805315,0.001,3071.3,3070.4,0.405504]
[1765712805510,0.001,3071.3,3070.9,0.405504]
[1765712805816,0.001,3071.3,3071.1,30.0]
[1765712806009,0.001,3071.3,3071.2,30.405504]
[1765712806730,0.001,3071.3,3071.2,30.98597929]
[1765712806933,1.625,3071.6,3071.5,30.98597929]
[1765712807157,0.001,3076.5,3072.2,1.03597929]
[1765712807306,0.4812,3075.2,3073.8,0.405504]
[1765712807634,0.4812,3075.7,3074.2,1.7868]
[1765712807801,0.4822,3076.3,3074.5,32.192304]
[1765712807999,0.001,3076.3,3075.3,0.567304]
[1765712808329,0.001,3076.3,3075.7,0.405504]
[1765712808630,0.4812,3078.0,3076.6,0.405504]
[1765712808834,0.1913,3078.5,3077.2,0.1588]
[1765712809035,0.1913,3078.5,3077.5,0.405504]
[1765712809212,0.4812,3077.7,3077.4,0.1588]
[1765712809530,0.4812,3078.3,3077.4,5.0178]
[1765712809735,0.4812,3078.3,3077.4,28.782172]
[1765712810302,0.4812,3077.5,3075.8,30.0]
[1765712810508,0.4812,3077.5,3076.1,0.405504]
[1765712810707,0.4812,3077.5,3076.0,30.0]
[1765712810915,0.4812,3077.5,3073.1,1.68088928]
[1765712810916,0.0406187,3077.4,3074.9,0.1588]
[1765712811240,0.1903,3076.1,3075.1,28.220494]
[1765712811403,0.1903,3076.1,3075.1,8.19354]
[1765712811611,0.0406187,3077.4,3075.1,8.19354]
[1765712811809,0.4812,3077.4,3075.4,30.0]
[1765712812107,0.4812,3077.9,3076.0,0.405504]
[1765712812305,0.4812,3077.9,3076.5,30.0]
[1765712812540,0.4812,3077.9,3076.8,0.405504]
[1765712812711,0.4812,3077.9,3076.7,6.142426]
[1765712812906,0.4822,3077.6,3076.7,6.142426]
[1765712813733,0.4822,3077.6,3076.2,0.57]
[1765712813953,0.4822,3077.6,3076.6,0.405504]
[1765712813954,0.001,3077.6,3076.6,0.405504]
[1765712814118,0.001,3078.9,3077.8,0.405504]
[1765712814434,0.001,3078.9,3078.0,19.987539]
[1765712814636,0.4812,3078.8,3078.0,19.987539]
[1765712814838,0.4812,3078.8,3077.0,30.0]
[1765712815062,0.4812,3078.8,3077.0,3.316164]
[1765712815352,0.04060155,3078.7,3076.6,16.246143]
[1765712815524,0.52180023,3078.8,3076.6,4.336114]
[1765712815845,0.52180023,3078.8,3076.2,23.643487]
[1765712815846,1.0502,3078.7,3076.2,23.643487]
[1765712816040,0.569,3078.6,3076.2,23.643487]
[1765712816344,1.0365,3078.6,3076.2,30.0]
[1765712816643,0.4675,3078.6,3076.5,0.405504]
[1765712816849,0.4675,3078.5,3076.8,15.15235]
[1765712817143,0.4675,3078.5,3076.7,8.645264]
[1765712817510,0.4675,3078.5,3076.8,0.405504]
[1765712817715,0.0406055,3078.4,3076.7,18.455632]
[1765712818035,0.4675,3078.4,3077.2,9.410426]
[1765712818207,0.4675,3078.4,3076.9,13.788926]
[1765712818412,0.4675,3078.4,3076.8,0.876454]
[1765712818413,0.4675,3078.4,3077.1,17.52651]
[1765712818809,0.4675,3078.4,3077.1,4.794088]
[1765712819039,0.4675,3078.4,3076.3,22.996683]
[1765712819227,0.04060682,3078.3,3075.1,30.0]
[1765712819438,0.4675,3078.2,3075.2,0.568]
[1765712819650,21.410038,3077.9,3075.3,14.173361]
[1765712819850,0.60861342,3077.8,3074.9,0.568]
[1765712820171,0.09628809,3076.9,3074.9,2.52677025]
[1765712820332,0.1813,3074.7,3072.6,30.0]
[1765712820533,0.1813,3074.7,3072.6,0.568]
[1765712820734,0.4675,3074.6,3072.7,10.602363]
[1765712820959,0.4675,3074.6,3072.9,18.986995]
[1765712821277,0.4675,3074.6,3072.9,12.071639]
[1765712821427,0.4675,3074.6,3072.9,4.171677]
[1765712821624,0.1813,3073.0,3071.6,30.0]
[1765712821824,0.1813,3073.0,3071.5,0.047]
[1765712821825,0.4675,3074.6,3071.8,30.0]
[1765712822049,0.4675,3074.5,3072.0,30.0]
[1765712822258,0.1813,3075.3,3072.6,0.405504]
[1765712822259,0.4675,3075.1,3072.6,0.405504]
[1765712822463,0.1813,3075.3,3073.9,7.138268]
[1765712822762,0.09628809,3074.3,3073.8,0.002]
[1765712822950,0.09628809,3074.3,3072.6,0.002]
[1765712823129,0.09628809,3074.1,3072.6,0.002]
[1765712823326,0.4675,3074.2,3072.7,12.131944]
[1765712823537,0.4675,3074.1,3072.9,7.827506]
[1765712823727,0.4675,3074.1,3072.7,3.198567]
[1765712824061,0.4675,3074.1,3072.8,0.405504]
[1765712824224,0.4675,3074.1,3073.1,11.808449]
[1765712824424,0.4675,3074.1,3073.3,6.2801]
[1765712824666,0.4675,3074.1,3072.7,8.835428]
[1765712824958,0.4675,3074.1,3073.2,0.405504]
[1765712825259,0.4675,3074.1,3073.0,0.405504]
[1765712825423,0.4675,3074.1,3072.9,4.102868]
[1765712825632,0.4675,3074.1,3072.6,0.002]
[1765712825826,0.4675,3074.1,3072.7,4.082461]
[1765712826471,0.4675,3074.1,3072.6,0.002]
[1765712826761,0.4675,3074.1,3072.7,6.103131]
[1765712827395,0.4675,3074.1,3072.7,8.174649]
[1765712827559,0.4675,3074.6,3073.0,0.405504]
[1765712827759,0.6488,3075.3,3073.4,0.405504]
[1765712827982,0.6488,3075.3,3073.3,3.920107]
[1765712828288,0.4675,3075.2,3073.5,30.405504]
[1765712828487,0.4675,3075.2,3073.7,0.405504]
[1765712828687,0.4675,3075.2,3073.6,6.966048]
[1765712829289,0.4675,3075.2,3073.1,21.795292]
[1765712829508,0.4675,3075.2,3073.2,0.405504]
[1765712829789,0.4675,3075.2,3073.7,14.760397]
[1765712829991,0.4675,3075.2,3073.7,13.839633]
[1765712830202,0.50814776,3075.2,3073.2,0.568]
[1765712830363,0.50814776,3075.2,3073.3,5.01189]
[1765712830574,0.50814776,3075.2,3073.3,2.510245]
[1765712830771,0.4675,3075.2,3073.4,0.2078]
[1765712830989,3.85606968,3077.6,3073.7,0.405504]
[1765712830990,0.4675,3075.9,3073.7,0.405504]
[1765712831168,0.4675,3075.9,3075.0,0.405504]
[1765712831370,0.4675,3075.9,3075.2,3.383796]
[1765712831561,0.4675,3075.9,3074.9,11.684114]
[1765712831762,0.6488,3076.5,3075.3,12.129221]
[1765712832081,0.6488,3076.5,3074.4,4.790571]
[1765712832404,0.4675,3077.3,3075.6,0.405504]
[1765712832562,0.4675,3077.3,3076.0,0.405504]
[1765712832762,0.4675,3077.3,3075.0,0.2078]
[1765712832994,0.4675,3077.3,3075.7,0.405504]
[1765712833181,0.4675,3077.3,3076.0,24.321769]
[1765712833494,0.50812134,3077.2,3075.9,2.177754]
[1765712833786,0.4675,3077.2,3075.3,21.444613]
[1765712834290,0.4675,3077.2,3075.3,6.993835]
[1765712834493,0.4675,3077.2,3075.5,30.0]
[1765712834870,0.4675,3077.2,3075.6,0.405504]
[1765712835192,0.04161606,3077.6,3077.5,0.405504]
[1765712835193,0.001,3077.6,3077.5,0.405504]
[1765712835389,0.001,3077.6,3077.5,30.973504]
[1765712835590,0.001,3077.6,3077.5,31.181304]
[1765712835763,0.001,3077.6,3077.5,32.69633585]
[1765712835962,0.001,3077.6,3077.5,2.69633585]
[1765712836191,0.001,3077.6,3077.5,0.973504]
[1765712836892,0.001,3077.6,3077.1,0.09628809]
[1765712837101,0.001,3077.6,3077.0,11.339]
[1765712837271,0.001,3077.6,3076.2,0.09628809]
[1765712837594,0.001,3077.6,3076.4,30.0]
[1765712837795,0.001,3077.2,3076.6,5.108]
[1765712837972,0.001,3077.2,3076.6,30.0]
[1765712838301,0.001,3077.2,3076.4,30.0]
[1765712838600,0.001,3077.2,3075.7,30.0]
[1765712838601,0.4675,3077.1,3075.7,30.0]
[1765712838780,0.4675,3077.1,3075.8,0.09628809]
[1765712838964,0.4675,3077.1,3075.9,30.0]
[1765712839165,0.001,3077.2,3076.1,30.0]
[1765712839369,0.4685,3077.2,3076.3,7.738]
[1765712839581,0.001,3077.2,3076.3,17.738]
[1765712839775,0.001,3077.2,3076.4,0.405504]
[1765712840078,0.001,3077.2,3076.6,10.405504]
[1765712840277,0.001,3077.2,3076.3,0.405504]
[1765712840585,0.001,3077.2,3076.2,0.567]
[1765712840984,0.4685,3077.2,3076.2,0.567]
[1765712841186,0.001,3077.2,3076.3,0.405504]
[1765712842813,0.001,3077.2,3075.7,5.5203]
[1765712843109,0.001,3077.2,3076.7,0.405504]
[1765712843309,0.001,3077.2,3076.8,0.566]
[1765712843511,0.001,3077.2,3077.1,0.405504]
[1765712843681,0.001,3077.6,3077.2,30.0]
[1765712843881,0.001,3077.6,3077.3,10.0]
[1765712844114,0.001,3077.6,3076.7,8.87]
[1765712844286,0.001,3077.6,3075.9,0.566]
[1765712844287,0.4685,3077.6,3075.9,0.566]
[1765712844487,0.4685,3077.6,3076.0,30.0]
[1765712844687,0.4685,3077.6,3075.6,0.09628809]
[1765712844907,0.4685,3077.6,3075.7,16.71549577]
[1765712845213,0.4685,3077.6,3075.7,10.344]
[1765712845588,0.001,3077.2,3075.6,0.09628809]
[1765712845888,0.495,3077.1,3075.6,0.09628809]
[1765712848222,0.495,3077.1,3075.9,0.405504]
[1765712848511,0.495,3077.1,3076.1,0.405504]
[1765712848725,0.495,3077.1,3075.9,0.405504]
[1765712848933,0.495,3077.1,3075.7,0.405504]
[1765712848934,0.001,3077.2,3076.1,10.405504]
[1765712849091,0.001,3077.2,3076.2,30.0]
[1765712849284,0.001,3077.2,3076.5,0.405504]
[1765712849494,0.001,3077.2,3076.7,0.405504]
[1765712849693,0.001,3077.2,3075.8,0.09628809]
[1765712849912,0.001,3077.2,3076.2,0.405504]
[1765712850125,0.495,3077.1,3075.8,30.0]
[1765712850336,0.001,3077.2,3076.1,0.405504]
[1765712850496,0.001,3077.2,3076.3,0.405504]
[1765712850692,0.495,3077.1,3075.7,0.566]
[1765712850931,0.495,3077.1,3075.8,2.32]
[1765712851133,0.495,3077.1,3074.9,30.0]
[1765712851497,0.495,3077.1,3074.6,30.0]
[1765712851729,0.495,3077.1,3074.8,30.0]
[1765712851941,0.495,3077.1,3075.0,30.0]
[1765712852109,0.495,3077.1,3075.5,0.405504]
[1765712852437,0.001,3077.2,3076.0,21.221]
[1765712852640,0.001,3077.2,3076.3,0.405504]
[1765712852843,0.001,3077.2,3076.5,0.405504]
[1765712853012,0.001,3077.2,3076.7,0.405504]
[1765712853208,0.001,3077.2,3076.9,0.405504]
[1765712853419,0.001,3077.6,3077.3,0.405504]
[1765712853645,0.001,3077.6,3075.5,30.0]
[1765712853646,0.496,3077.6,3075.5,30.0]
[1765712854322,0.496,3077.6,3075.6,0.2063]
[1765712854521,0.001,3077.6,3075.7,30.0]
[1765712854839,0.496,3077.6,3076.0,0.405504]
[1765712855039,0.496,3077.6,3076.2,30.0]
[1765712855814,0.1896,3076.3,3073.9,30.0]
[1765712856016,0.1896,3076.3,3074.1,30.0]
[1765712856247,0.495,3076.2,3074.1,5.084]
[1765712856548,0.495,3076.2,3074.1,12.509]
[1765712856549,0.29463127,3076.1,3074.1,12.509]
[1765712856733,0.29463127,3076.0,3074.1,12.7153]
[1765712856954,0.29460812,3075.9,3074.1,30.0]
[1765712857154,0.29462193,3076.0,3074.1,13.014]
[1765712857352,0.29510994,3075.9,3074.1,13.014]
[1765712857555,0.29510994,3075.8,3074.1,13.014]
[1765712857741,0.495,3075.8,3074.1,13.014]
[1765712858138,0.495,3075.8,3074.3,30.0]
[1765712858448,0.1896,3076.3,3074.2,10.2063]
[1765712858449,0.1896,3076.3,3074.6,0.405504]
[1765712858666,0.29530799,3076.2,3074.9,30.0]
[1765712858845,0.6846,3076.3,3075.0,0.405504]
[1765712859049,0.58047529,3077.1,3075.4,0.405504]
[1765712859050,0.495,3077.1,3075.4,0.405504]
[1765712859256,0.495,3077.1,3075.6,0.405504]
[1765712859469,0.495,3077.1,3075.7,5.494]
[1765712859639,0.495,3077.1,3075.9,25.11]
[1765712859838,0.495,3077.1,3075.8,0.405504]
[1765712860033,0.495,3077.1,3075.6,0.405504]
[1765712860264,0.495,3077.1,3075.8,0.405504]
[1765712860444,0.29609113,3077.0,3075.6,0.405504]
[1765712860663,0.495,3077.1,3075.8,10.405504]
[1765712860835,0.79109117,3077.0,3075.8,0.405504]
[1765712861040,0.001,3077.2,3076.2,0.405504]
[1765712861442,0.001,3077.2,3075.8,0.405504]
[1765712861747,0.001,3077.2,3076.3,30.0]
[1765712861955,0.001,3077.2,3076.6,0.405504]
[1765712862149,0.001,3077.2,3076.8,0.405504]
[1765712862372,0.001,3077.2,3076.1,0.42192659]
[1765712862574,0.001,3077.2,3076.3,0.405504]
[1765712862879,0.001,3077.2,3075.9,0.564]
[1765712862880,0.001,3077.2,3076.4,0.01642098]
[1765712863048,0.001,3077.2,3076.7,30.0]
[1765712863243,0.001,3077.2,3077.1,0.405504]
[1765712863862,0.001,3077.2,3076.9,30.0]
[1765712864064,0.001,3077.2,3076.8,0.405504]
[1765712864065,0.001,3077.2,3077.1,30.405504]
[1765712864373,0.001,3077.2,3077.1,30.611804]
[1765712864961,0.001,3077.2,3077.1,30.405504]
[1765712866910,0.001,3077.2,3077.1,0.405504]
[1765712868905,0.001,3077.2,3077.1,30.405504]
[1765712869084,0.001,3077.2,3077.1,0.405504]
[1765712870591,0.001,3077.2,3076.7,0.563]
[1765712870906,0.001,3077.2,3076.0,0.2063]
[1765712871078,0.496,3077.2,3075.8,15.636]
[1765712871269,0.496,3077.2,3076.0,10.229]
[1765712871470,0.496,3077.2,3075.6,0.561]
[1765712872290,0.496,3077.2,3075.8,0.405504]
[1765712872488,0.496,3077.2,3075.6,0.561]
[1765712872489,0.496,3077.2,3076.1,30.0]
[1765712872808,0.496,3077.2,3076.2,0.405504]
[1765712873309,0.496,3077.2,3076.0,0.405504]
[1765712873486,0.496,3077.2,3076.2,0.405504]
[1765712873887,0.496,3077.2,3075.6,0.561]
[1765712873888,0.496,3077.2,3075.9,0.405504]
[1765712874117,0.496,3077.2,3076.3,0.405504]
[1765712874409,0.496,3077.2,3075.8,12.045]
[1765712875209,0.496,3077.2,3076.1,10.405504]
[1765712875403,0.496,3077.2,3076.5,0.405504]
[1765712875588,0.496,3077.2,3076.3,10.405504]
[1765712875589,0.496,3077.2,3076.3,0.405504]
[1765712875796,0.496,3077.2,3075.7,0.2063]
[1765712875797,0.496,3077.2,3075.7,0.405504]
[1765712876502,0.496,3077.2,3075.2,0.2063]
[1765712876688,0.496,3077.2,3074.9,30.0]
[1765712877111,0.496,3077.2,3075.0,30.0]
[1765712877316,0.496,3077.2,3075.2,26.685]
[1765712877512,0.496,3077.2,3075.1,7.136]
[1765712877690,0.496,3077.2,3075.3,30.0]
[1765712877889,0.496,3077.2,3075.5,30.0]
[1765712878111,0.496,3077.2,3075.9,0.405504]
[1765712878300,0.496,3077.2,3076.1,0.405504]
[1765712878504,0.496,3077.2,3075.5,0.559]
[1765712878681,0.496,3077.2,3075.6,0.405504]
[1765712879409,0.496,3077.2,3075.8,0.405504]
[1765712879614,0.496,3077.2,3076.1,0.405504]
[1765712879785,0.496,3077.2,3075.6,0.405504]
[1765712879988,0.496,3077.2,3075.5,0.559]
[1765712880789,0.496,3077.2,3075.4,0.0455]
[1765712880790,0.496,3077.2,3075.7,0.405504]
[1765712880991,0.001,3077.2,3076.2,0.405504]
[1765712881287,0.001,3077.2,3076.6,0.405504]
[1765712881605,0.001,3077.2,3077.0,0.405504]
[1765712881805,0.001,3077.2,3077.1,30.41623417]
[1765712882118,0.001,3077.2,3077.1,30.611804]
[1765712882319,0.001,3077.2,3077.1,30.405504]
[1765712882710,0.001,3077.2,3077.1,30.611804]
[1765712883088,0.001,3077.6,3077.4,0.405504]
[1765712883294,0.001,3077.6,3077.5,31.168804]
[1765712883697,0.001,3078.2,3077.8,0.405504]
[1765712883910,0.001,3078.2,3078.0,0.405504]
[1765712884112,0.001,3078.2,3078.1,30.405504]
[1765712884304,0.001,3078.2,3078.1,30.609804]
[1765712884499,0.001,3078.9,3077.5,0.558]
[1765712884500,0.001,3078.9,3078.4,0.405504]
[1765712884704,0.001,3078.9,3078.6,0.405504]
[1765712884900,0.001,3078.9,3078.8,0.405504]
[1765712885102,0.001,3078.9,3078.8,19.067504]
[1765712885305,0.001,3078.9,3078.8,15.472504]
[1765712885718,0.001,3078.9,3078.8,30.607804]
[1765712885918,0.6,3079.8,3079.4,0.405504]
[1765712886098,0.6,3079.8,3079.6,3.030504]